bitfinex-derivatives/quotes_SOLF0:USTF0_20241217
["timestamp","ask_amount","ask_price","bid_price","bid_amount"]
[1734427957836,1.47,220.41,220.31,2.24]
[1734427958232,2.2689,220.38,220.32,2.2695]
[1734427958527,0.6596,220.47,220.31,2.24]
[1734427958727,2.2686,220.41,220.35,2.2692]
[1734427959028,9.33970319,220.48,220.36,2.24]
[1734427959235,9.33970319,220.48,220.37,2.24]
[1734427959536,2.2685,220.42,220.38,2.24]
[1734427959832,2.2686,220.41,220.39,2.24]
[1734427960431,2.2687,220.4,220.39,2.24]
[1734427960640,2.24,220.47,220.28,1.13510794]
[1734427960933,2.24,220.47,220.29,2.24]
[1734427961139,2.2691,220.36,220.31,2.2696]
[1734427962637,2.2691,220.36,220.32,2.24]
[1734427963031,2.24,220.42,220.32,2.24]
[1734427963528,2.24,220.42,220.27,3.72073]
[1734427963728,2.24,220.42,220.28,2.26]
[1734427963926,0.6577,220.41,220.28,2.26]
[1734427964336,3.8071,220.4,220.28,2.26]
[1734427964537,1.6204,220.39,220.28,2.26]
[1734427965039,2.2696,220.31,220.28,2.26]
[1734427966238,2.2698,220.29,220.28,2.26]
[1734427966629,2.26,220.35,220.28,2.26]
[1734427967332,2.2699,220.28,220.27,2.19693]
[1734427969133,5.53381702,220.36,220.16,2.2711]
[1734427969134,2.2707,220.2,220.16,2.2711]
[1734427969332,2.2707,220.2,220.17,3.39533907]
[1734427969541,2.2707,220.2,220.18,1.13533907]
[1734427969739,2.2707,220.2,220.19,1.13533907]
[1734427970137,2.2707,220.2,220.17,2.26]
[1734427970343,2.2707,220.2,220.19,1.13536777]
[1734427970545,2.2707,220.2,220.15,2.2711]
[1734427970738,2.2707,220.2,220.16,3.3952549]
[1734427970934,2.2707,220.2,220.17,1.1352549]
[1734427971439,2.2707,220.2,220.18,1.1352549]
[1734427971638,2.2707,220.2,220.19,1.1352549]
[1734427973144,2.2706,220.22,220.19,1.1352549]
[1734427973344,2.26,220.28,220.2,1.1352549]
[1734427973542,2.26,220.28,220.16,2.26]
[1734427973736,2.26,220.28,220.17,1.13536026]
[1734427974045,2.26,220.28,220.18,1.13536026]
[1734427974345,2.26,220.28,220.19,1.13536026]
[1734427974542,2.26,220.28,220.2,1.13536026]
[1734427974743,2.26,220.28,220.21,1.13536026]
[1734427974943,2.2704,220.23,220.22,1.13536026]
[1734427975937,2.26,220.28,220.16,2.26]
[1734427976141,2.26,220.28,220.17,1.13537192]
[1734427976341,2.26,220.28,220.18,1.13537192]
[1734427976547,3.7353,220.27,220.19,1.13537192]
[1734427976744,2.2712,220.16,220.14,2.26]
[1734427977042,2.26,220.23,220.15,1.13542329]
[1734427977242,2.271,220.17,220.16,1.13542329]
[1734427980441,2.2715,220.13,220.1,2.26]
[1734427980943,2.2715,220.13,220.08,2.2719]
[1734427981139,2.2715,220.13,220.09,2.26]
[1734427982051,2.2716,220.12,220.09,2.26]
[1734427982438,2.2716,220.12,220.09,4.5318]
[1734427983044,2.2716,220.12,220.09,2.26]
[1734427983840,5.35757134,220.2,220.07,0.25786]
[1734427984040,5.35757134,220.2,220.07,2.51786]
[1734427984245,3.7353,220.27,220.07,2.51786]
[1734427984444,3.7353,220.27,220.08,4.5661]
[1734427984644,3.0738,220.27,220.08,4.5661]
[1734427985037,2.2708,220.19,220.15,2.2712]
[1734427985248,2.2708,220.19,220.16,2.26]
[1734427985440,3.0738,220.27,220.16,2.26]
[1734427985642,45.12130967,222.19,220.16,4.5311]
[1734427985643,2.26,220.28,220.16,4.5311]
[1734427985843,2.26,220.3,220.16,4.5311]
[1734427986041,2.26,220.29,220.16,4.5311]
[1734427986447,2.26,220.29,220.16,2.26]
[1734427986744,5.59066854,220.28,220.16,2.26]
[1734427987445,2.2708,220.19,220.16,2.26]
[1734427987649,5.59066854,220.28,220.16,2.26]
[1734427988949,5.59066854,220.28,220.08,4.5661]
[1734427989151,5.59066854,220.28,220.09,2.26]
[1734427989451,2.2708,220.2,220.15,2.2711]
[1734427989652,2.2708,220.2,220.16,2.26]
[1734427990648,2.2708,220.2,220.16,4.531]
[1734427990848,2.2706,220.21,220.17,3.0989]
[1734427991046,7.85066854,220.28,220.17,3.0989]
[1734427991250,7.85066854,220.28,220.19,2.2707]
[1734427991951,5.59066854,220.28,220.19,2.2707]
[1734427992551,2.2705,220.23,220.19,2.2707]
[1734427992953,2.2705,220.23,220.18,2.2709]
[1734427993646,5.59066854,220.28,220.18,2.2709]
[1734427993845,258.1773315,220.61,220.19,51.94]
[1734427994048,2.2256,220.56,220.2,0.90826521]
[1734427994249,2.2678,220.48,220.21,2.26]
[1734427994455,0.68546784,220.47,220.22,0.90818272]
[1734427994750,2.26,220.55,220.22,0.90818272]
[1734427994954,0.68532269,220.54,220.22,187.90818272]
[1734427995152,0.68532269,220.54,220.23,1.0]
[1734427995555,2.2678,220.49,220.23,1.0]
[1734427995855,2.2678,220.49,220.24,0.90810025]
[1734427996555,2.2678,220.49,220.4,2.2686]
[1734427996754,2.2678,220.49,220.41,3.863]
[1734427997159,2.2679,220.48,220.41,3.863]
[1734427998278,7.75893968,220.54,220.41,3.863]
[1734427998576,2.2677,220.5,220.42,2.2685]
[1734427998771,2.2677,220.5,220.42,3.8737]
[1734427999579,2.2677,220.5,220.42,1.6052]
[1734427999784,2.2677,220.5,220.43,2.2683]
[1734428000986,5.51107736,220.55,220.42,3.1088]
[1734428001284,2.268,220.47,220.43,2.26]
[1734428001602,2.2678,220.49,220.43,2.26]
[1734428001981,0.68535369,220.48,220.43,2.26]
[1734428002279,2.2678,220.48,220.43,2.26]
[1734428003082,2.2679,220.47,220.43,2.26]
[1734428003282,7.31033627,220.55,220.43,2.26]
[1734428003486,0.685252,220.54,220.44,1.5568]
[1734428003795,0.685252,220.53,220.44,1.5568]
[1734428004084,2.2672,220.55,220.44,1.5568]
[1734428004289,0.68524207,220.54,220.44,1.5568]
[1734428004489,2.95244207,220.54,220.44,1.5568]
[1734428004688,0.68524207,220.53,220.44,1.5568]
[1734428004881,0.68524207,220.53,220.48,2.2678]
[1734428005192,0.68524207,220.53,220.49,2.26]
[1734428007391,0.68532854,220.52,220.49,2.26]
[1734428007584,0.68532854,220.51,220.49,2.26]
[1734428007787,0.68532854,220.5,220.49,2.26]
[1734428007999,0.68532909,220.5,220.49,2.26]
[1734428008191,0.68532909,220.54,220.49,2.26]
[1734428008384,0.68532909,220.53,220.49,2.26]
[1734428008689,0.68532909,220.52,220.49,4.5277]
[1734428008882,0.68532909,220.51,220.49,2.26]
[1734428009084,2.2671,220.56,220.49,4.5277]
[1734428009085,0.68532909,220.5,220.49,4.5277]
[1734428009496,44.98401422,222.21,220.49,2.26]
[1734428009497,6.9933081,220.55,220.49,2.26]
[1734428009691,2.2669,220.57,220.51,2.2675]
[1734428009988,2.2668,220.58,220.49,2.26]
[1734428010187,24.14709196,220.6,220.49,2.26]
[1734428010494,7.6702918,220.59,220.54,2.2672]
[1734428010695,0.67986892,220.58,220.55,2.26]
[1734428010888,0.67986892,220.57,220.55,2.26]
[1734428011086,24.81975112,220.63,220.55,2.26]
[1734428011291,24.81975353,220.62,220.55,2.26]
[1734428011484,2.2667,220.6,220.55,2.26]
[1734428011792,0.67987133,220.59,220.55,2.26]
[1734428012095,0.67987133,220.58,220.55,2.26]
[1734428012298,0.67987133,220.57,220.55,2.26]
[1734428012482,0.67987133,220.56,220.55,2.26]
[1734428013185,7.6702942,220.57,220.55,2.26]
[1734428013379,0.67987133,220.56,220.55,2.26]
[1734428013572,0.67987133,220.57,220.55,2.26]
[1734428013777,0.67987133,220.56,220.55,2.26]
[1734428013982,2.2668,220.59,220.55,2.26]
[1734428014172,0.67985238,220.58,220.55,2.26]
[1734428014367,0.67985238,220.58,220.49,5.5283712]
[1734428014564,0.67985238,220.57,220.55,2.2671]
[1734428014760,6.98108338,220.6,220.56,2.26]
[1734428014966,0.68000325,220.59,220.56,2.26]
[1734428015464,24.1133703,220.59,220.56,2.26]
[1734428015863,2.2666,220.6,220.56,2.26]
[1734428018671,5.35746359,220.65,220.55,2.2671]
[1734428018862,2.2667,220.59,220.56,2.26]
[1734428019067,2.2667,220.59,220.55,2.2671]
[1734428019268,2.2667,220.59,220.56,2.26]
[1734428020269,2.2667,220.59,220.55,2.2671]
[1734428020270,5.35746359,220.65,220.49,5.5283712]
[1734428020470,5.35746359,220.65,220.5,2.26]
[1734428021473,5.35746359,220.65,220.51,2.26]
[1734428021971,2.2671,220.56,220.51,4.5275]
[1734428022366,2.26,220.63,220.51,2.26]
[1734428022569,2.2668,220.59,220.54,2.2671]
[1734428022774,0.6579,220.68,220.51,2.26]
[1734428022775,4.53,220.76,220.52,1.5399]
[1734428022974,6.041,220.79,220.52,3.047]
[1734428023165,2.2658,220.68,220.63,2.2662]
[1734428023368,2.2658,220.68,220.64,2.26]
[1734428023671,6.041,220.79,220.64,2.26]
[1734428023868,2.2658,220.69,220.64,2.26]
[1734428024075,6.041,220.79,220.64,2.26]
[1734428024273,2.26,220.77,220.64,2.26]
[1734428024669,3.781,220.79,220.64,2.26]
[1734428024878,8.57724645,220.79,220.65,1.4918]
[1734428025173,8.57724645,220.79,220.65,2.9792]
[1734428025369,2.2655,220.72,220.66,2.26]
[1734428025879,8.57724645,220.79,220.66,2.26]
[1734428026073,2.2655,220.71,220.66,2.26]
[1734428026373,2.26,220.78,220.65,2.9792]
[1734428026574,2.26,220.78,220.66,2.26]
[1734428026970,8.57724645,220.79,220.66,2.26]
[1734428027365,2.2656,220.7,220.66,2.26]
[1734428027567,2.26,220.77,220.64,2.26]
[1734428027773,2.26,220.77,220.54,4.67730353]
[1734428027774,2.26,220.77,220.65,2.26]
[1734428029073,2.26,220.77,220.63,5.43407459]
[1734428029269,2.2661,220.65,220.64,2.26]
[1734428030276,2.26,220.77,220.54,3.1499]
[1734428030477,2.2665,220.62,220.57,2.2668]
[1734428030673,8.57724645,220.79,220.55,2.26]
[1734428030975,2.26,220.76,220.61,5.34137383]
[1734428031171,2.26,220.76,220.62,2.26]
[1734428032574,2.2659,220.67,220.62,4.5264]
[1734428033369,2.266,220.66,220.62,4.5264]
[1734428033571,2.266,220.66,220.62,2.26]
[1734428034977,2.266,220.66,220.62,4.5264]
[1734428035474,2.26,220.71,220.54,3.1499]
[1734428035674,1.5512,220.7,220.55,6.94261443]
[1734428035876,1.5512,220.7,220.56,4.68261443]
[1734428035877,2.2667,220.6,220.56,4.68261443]
[1734428036077,1.5512,220.7,220.55,2.26]
[1734428036270,1.5512,220.7,220.56,4.68510842]
[1734428036473,2.2664,220.63,220.57,2.2669]
[1734428036772,1.5512,220.7,220.58,12.81592351]
[1734428036979,1.5512,220.7,220.59,12.81592351]
[1734428037173,2.2664,220.63,220.6,15.07592351]
[1734428037376,1.5512,220.7,220.61,15.07592351]
[1734428037578,1.5512,220.7,220.62,4.92920135]
[1734428037579,2.2663,220.63,220.62,4.92920135]
[1734428037772,1.5512,220.7,220.62,4.93182756]
[1734428038079,1.5512,220.7,220.63,4.93182756]
[1734428038281,1.5512,220.7,220.64,4.93182756]
[1734428038476,1.5512,220.7,220.65,4.93182756]
[1734428038674,1.5512,220.7,220.66,4.93182756]
[1734428038874,1.5512,220.7,220.61,2.26]
[1734428039173,1.5512,220.7,220.62,15.08821802]
[1734428039478,1.5512,220.7,220.63,4.93393001]
[1734428039673,1.5512,220.7,220.64,4.93393001]
[1734428039871,1.5512,220.7,220.65,4.93393001]
[1734428040081,1.5512,220.7,220.62,2.26]
[1734428040380,1.5512,220.7,220.63,4.93569844]
[1734428040580,1.5512,220.7,220.62,2.26]
[1734428040782,1.5512,220.7,220.63,4.9362111]
[1734428040976,1.5512,220.7,220.64,4.9362111]
[1734428041282,2.266,220.66,220.65,4.9362111]
[1734428041477,2.266,220.66,220.65,2.5074111]
[1734428041679,1.476,220.69,220.59,2.26]
[1734428041976,2.26,220.68,220.4,4.5373]
[1734428042176,2.26,220.68,220.41,15.80800043]
[1734428042378,2.26,220.68,220.42,11.20270043]
[1734428042584,4.5321,220.66,220.5,5.50322551]
[1734428042781,2.26,220.65,220.51,11.63545583]
[1734428043093,2.26,220.65,220.52,7.80865583]
[1734428043283,2.26,220.65,220.53,7.80865583]
[1734428043483,2.26,220.65,220.54,7.80865583]
[1734428043679,2.2675,220.52,220.5,7.76322551]
[1734428043882,2.2675,220.52,220.51,7.81830158]
[1734428046380,2.2675,220.52,220.49,2.26]
[1734428046583,2.2675,220.52,220.5,7.82397038]
[1734428046881,2.26,220.6,220.49,2.26]
[1734428047084,2.26,220.6,220.44,2.26]
[1734428047389,2.2679,220.47,220.45,3.39427116]
[1734428047586,2.2679,220.47,220.42,1.6076]
[1734428047587,2.2679,220.47,220.46,7.82970964]
[1734428047994,2.26,220.5,220.37,2.26]
[1734428048290,2.2687,220.4,220.38,8.97060774]
[1734428048480,2.2687,220.4,220.39,7.83608969]
[1734428049088,2.26,220.5,220.39,7.83608969]
[1734428049288,2.26,220.5,220.4,7.83608969]
[1734428049485,2.26,220.5,220.41,10.09608969]
[1734428049687,2.2679,220.48,220.42,7.83608969]
[1734428049889,2.2679,220.48,220.41,2.26]
[1734428049890,2.26,220.5,220.41,2.26]
[1734428050188,2.2682,220.45,220.42,7.84101191]
[1734428050385,2.2682,220.45,220.41,2.26]
[1734428050691,2.26,220.5,220.42,7.84166442]
[1734428050892,2.2683,220.44,220.41,2.26]
[1734428051091,0.9211,220.58,220.42,7.84236233]
[1734428051293,2.26,220.57,220.43,7.84236233]
[1734428051496,2.26,220.57,220.41,2.26]
[1734428051497,2.26,220.57,220.44,1.5841]
[1734428052189,2.2673,220.54,220.44,1.5841]
[1734428052396,2.26,220.55,220.44,1.5841]
[1734428052895,2.2679,220.48,220.44,1.5841]
[1734428053692,2.2679,220.48,220.45,4.90300087]
[1734428053894,2.2679,220.48,220.44,1.5841]
[1734428054093,2.2679,220.48,220.45,4.90304035]
[1734428054398,2.2679,220.48,220.44,1.5841]
[1734428054595,2.2679,220.48,220.45,4.90433117]
[1734428054799,2.2679,220.48,220.44,1.5841]
[1734428054996,2.2679,220.48,220.45,4.90431708]
[1734428055197,2.2679,220.48,220.44,1.5841]
[1734428055395,2.2679,220.48,220.45,4.90522914]
[1734428055694,2.2679,220.48,220.44,1.5841]
[1734428055893,2.26,220.55,220.44,1.5841]
[1734428055894,2.26,220.55,220.45,4.90544835]
[1734428056093,2.26,220.55,220.44,1.5841]
[1734428056290,2.26,220.55,220.45,4.90591491]
[1734428056496,0.6552,220.54,220.35,3.7732]
[1734428056692,1.33502427,220.54,220.36,14.98085494]
[1734428057001,0.67982427,220.53,220.37,12.76085494]
[1734428057192,0.67982427,220.53,220.36,2.22]
[1734428057797,2.2688,220.4,220.35,1.5532]
[1734428057999,2.22,220.45,220.36,4.90966811]
[1734428058196,2.22,220.45,220.35,3.7732]
[1734428058395,2.22,220.45,220.36,4.90985474]
[1734428058396,2.2687,220.4,220.36,4.90985474]
[1734428058697,2.22,220.47,220.37,4.90861184]
[1734428058905,2.22,220.49,220.38,4.90861184]
[1734428059102,2.22,220.49,220.35,3.7732]
[1734428059302,2.22,220.49,220.36,4.9079113]
[1734428059502,5.46435066,220.47,220.37,4.9079113]
[1734428059806,4.5343,220.55,220.38,4.9079113]
[1734428059997,2.8998705,220.54,220.39,4.90683566]
[1734428060203,2.8998705,220.54,220.35,3.7732]
[1734428060204,5.45291213,220.53,220.4,4.90683566]
[1734428060400,2.2686,220.41,220.36,4.489]
[1734428060595,2.2686,220.41,220.37,4.90852002]
[1734428060797,2.2686,220.41,220.36,4.489]
[1734428061102,7.67291213,220.53,220.37,12.75910503]
[1734428061307,5.45291213,220.53,220.38,12.75910503]
[1734428061606,2.2679,220.48,220.43,2.2683]
[1734428061808,2.2679,220.48,220.44,2.22]
[1734428062203,2.2677,220.5,220.45,2.2681]
[1734428062408,2.22,220.55,220.45,2.2681]
[1734428062802,2.2678,220.49,220.44,2.22]
[1734428063500,2.2678,220.49,220.44,4.4882]
[1734428065300,4.5328,220.63,220.44,2.22]
[1734428065509,2.89958754,220.62,220.45,7.90114728]
[1734428065708,0.67958968,220.61,220.45,3.0013]
[1734428066003,5.54617822,220.58,220.45,3.0013]
[1734428066208,5.88148968,220.57,220.45,1.5123]
[1734428066505,2.2682,220.45,220.44,2.22]
[1734428066707,2.22,220.52,220.4,2.2687]
[1734428066907,2.22,220.52,220.41,2.22]
[1734428067306,2.2683,220.45,220.41,2.22]
[1734428067505,2.22,220.52,220.4,2.22]
[1734428068002,2.22,220.52,220.36,1.5123]
[1734428068199,2.22,220.52,220.37,7.12170963]
[1734428068398,2.22,220.52,220.39,2.2688]
[1734428068399,2.2679,220.48,220.39,2.2688]
[1734428068606,2.22,220.52,220.37,2.22]
[1734428069006,2.22,220.52,220.37,4.4889]
[1734428069200,2.22,220.52,220.37,2.22]
[1734428069400,2.2688,220.4,220.36,1.5123]
[1734428069602,2.22,220.47,220.35,3.6807]
[1734428069799,2.22,220.46,220.35,2.22]
[1734428069999,2.22,220.45,220.35,2.22]
[1734428070407,2.2691,220.36,220.35,2.22]
[1734428071309,2.2691,220.36,220.32,2.2695]
[1734428071506,2.2691,220.36,220.33,2.22]
[1734428071709,2.22,220.45,220.33,2.22]
[1734428071907,2.2691,220.36,220.33,2.22]
[1734428072103,2.22,220.45,220.31,3.7247]
[1734428072405,2.2695,220.32,220.31,3.7247]
[1734428072604,2.2695,220.32,220.31,4.90425838]
[1734428072803,2.22,220.35,220.25,1.5981]
[1734428073111,2.2702,220.25,220.22,2.22]
[1734428073311,2.22,220.35,220.23,4.90922028]
[1734428073613,2.22,220.39,220.24,4.90922028]
[1734428073811,3.6738,220.44,220.25,4.90494448]
[1734428073812,3.0182,220.44,220.25,4.90494448]
[1734428074009,2.269,220.37,220.26,14.26666005]
[1734428074308,3.0182,220.44,220.27,14.96966005]
[1734428074504,3.0182,220.44,220.28,12.74966005]
[1734428074701,2.269,220.37,220.29,4.90494448]
[1734428074902,2.22,220.43,220.3,12.74644328]
[1734428075106,2.22,220.43,220.27,2.22]
[1734428075107,2.2689,220.38,220.32,2.2695]
[1734428075310,2.2689,220.38,220.33,7.12494448]
[1734428075505,2.2689,220.38,220.33,2.22]
[1734428076213,2.2689,220.38,220.34,4.90021805]
[1734428076407,2.2689,220.38,220.33,2.22]
[1734428076608,2.2689,220.38,220.34,4.90102537]
[1734428076908,2.2689,220.38,220.33,2.22]
[1734428077109,2.2689,220.38,220.34,4.90102207]
[1734428077308,2.269,220.37,220.33,2.22]
[1734428077510,2.269,220.37,220.34,4.90265369]
[1734428077709,2.269,220.37,220.33,2.22]
[1734428077914,2.269,220.37,220.34,4.9027242]
[1734428078210,2.269,220.37,220.35,4.90478891]
[1734428078410,2.269,220.37,220.33,2.22]
[1734428078610,2.2692,220.35,220.33,2.22]
[1734428078811,2.2692,220.35,220.15,13.24963307]
[1734428078812,5.48000497,220.42,220.27,1.5755]
[1734428079011,5.48000497,220.42,220.28,12.75574686]
[1734428079214,5.48000497,220.42,220.27,1.5755]
[1734428079215,5.48000497,220.42,220.29,12.76076503]
[1734428079414,5.48000497,220.42,220.3,4.90605648]
[1734428079611,5.48000497,220.42,220.27,1.5755]
[1734428079809,2.2696,220.32,220.28,4.90965491]
[1734428080010,2.22,220.37,220.29,4.90965491]
[1734428080314,2.22,220.37,220.3,4.91049721]
[1734428080511,2.22,220.37,220.27,1.5755]
[1734428080709,2.22,220.37,220.28,12.76649242]
[1734428080912,2.22,220.37,220.29,4.91018939]
[1734428081213,2.22,220.37,220.3,4.91149721]
[1734428081415,2.22,220.37,220.31,4.90986774]
[1734428081612,2.22,220.39,220.27,1.5755]
[1734428081813,2.22,220.39,220.28,12.76385813]
[1734428082012,2.22,220.39,220.29,12.76385813]
[1734428082213,2.22,220.39,220.3,4.9091762]
[1734428082412,2.22,220.39,220.31,4.9091762]
[1734428082611,2.22,220.39,220.32,4.9091762]
[1734428082814,2.22,220.39,220.27,3.8455]
[1734428083016,2.22,220.39,220.28,12.76634242]
[1734428083218,2.22,220.39,220.29,12.76634242]
[1734428083517,2.22,220.39,220.3,12.76634242]
[1734428083721,2.22,220.39,220.31,4.9101317]
[1734428083914,2.22,220.39,220.32,4.9101317]
[1734428084113,2.22,220.39,220.27,1.5755]
[1734428084313,2.22,220.39,220.28,12.77664051]
[1734428084515,2.2698,220.3,220.29,12.77664051]
[1734428085007,2.2698,220.3,220.27,1.5755]
[1734428085008,2.22,220.39,220.27,1.5755]
[1734428085207,2.22,220.39,220.28,12.77823831]
[1734428085411,2.22,220.39,220.29,12.77678456]
[1734428085611,2.22,220.39,220.3,4.91414791]
[1734428086221,2.22,220.39,220.31,4.91414791]
[1734428086521,2.22,220.39,220.25,4.5102]
[1734428086712,2.22,220.39,220.26,12.78568582]
[1734428086911,2.2699,220.28,220.27,12.78568582]
[1734428087112,2.2699,220.28,220.27,4.91757147]
[1734428087308,2.24,220.33,220.22,1.575]
[1734428087509,2.24,220.33,220.23,4.92069839]
[1734428087510,2.2703,220.24,220.23,4.92069839]
[1734428088315,2.2707,220.21,220.18,2.24]
[1734428088519,2.24,220.29,220.19,12.79747503]
[1734428088817,2.2706,220.21,220.2,4.92210578]
[1734428090920,3.1619,220.32,220.1,5.55734287]
[1734428090921,2.24,220.23,220.1,5.55734287]
[1734428091115,18.18,220.28,220.11,12.7996471]
[1734428091116,2.24,220.22,220.11,12.7996471]
[1734428091320,2.24,220.21,220.12,4.92294119]
[1734428091516,2.2716,220.12,220.09,2.24]
[1734428091820,2.2716,220.12,220.1,12.79214958]
[1734428092017,2.24,220.2,220.11,4.92005753]
[1734428092216,2.24,220.27,220.12,7.86107993]
[1734428092421,2.24,220.27,220.13,15.97720358]
[1734428092621,2.24,220.27,220.14,15.01410358]
[1734428092822,2.24,220.27,220.16,2.2711]
[1734428093018,2.2708,220.19,220.17,4.91302365]
[1734428093217,2.24,220.27,220.18,4.91302365]
[1734428093519,2.24,220.27,220.14,2.24]
[1734428093723,2.271,220.18,220.15,4.9100185]
[1734428093918,2.271,220.18,220.16,4.9100185]
[1734428094123,2.271,220.18,220.17,4.9100185]
[1734428094321,5.31963822,220.25,220.13,5.4745]
[1734428094521,5.31963822,220.25,220.14,15.00054756]
[1734428094522,2.271,220.17,220.14,15.00054756]
[1734428094720,2.271,220.17,220.15,4.90790291]
[1734428094921,2.271,220.17,220.16,4.90790291]
[1734428095121,2.271,220.17,220.14,2.24]
[1734428095318,2.271,220.17,220.16,4.90811745]
[1734428096124,5.31963822,220.25,220.13,3.2031]
[1734428096317,2.2713,220.14,220.13,1.6179]
[1734428096518,2.24,220.24,220.1,2.45501]
[1734428096723,2.24,220.24,220.11,4.90687869]
[1734428097020,2.24,220.24,220.1,0.21501]
[1734428097424,3.0579,220.23,220.1,0.21501]
[1734428098526,2.2717,220.11,220.1,0.21501]
[1734428100327,2.2724,220.04,220.03,2.24]
[1734428100528,2.2724,220.04,220.03,7.12808741]
[1734428101930,2.272,220.09,220.03,7.12808741]
[1734428102131,2.24,220.18,220.04,12.69573738]
[1734428102330,2.24,220.18,220.1,2.2718]
[1734428102924,2.24,220.18,220.03,2.24]
[1734428103130,2.24,220.18,220.04,4.88024122]
[1734428103331,2.24,220.18,220.03,2.24]
[1734428103526,2.2722,220.06,220.04,4.87866898]
[1734428103726,2.24,220.13,220.03,2.24]
[1734428103930,2.24,220.12,220.03,2.24]
[1734428104229,2.24,220.13,220.03,2.24]
[1734428104428,2.24,220.13,220.01,2.24]
[1734428104631,2.24,220.13,220.02,4.87739646]
[1734428104831,2.24,220.13,220.0,2.24]
[1734428104832,2.24,220.13,219.99,2.24]
[1734428105031,2.2726,220.03,220.0,4.87773232]
[1734428105331,2.2726,220.03,220.01,4.87773232]
[1734428105534,2.2726,220.03,219.99,4.5129]
[1734428105732,1.5378,220.12,220.0,4.87546136]
[1734428105932,1.5378,220.12,220.01,4.87546136]
[1734428106134,1.5378,220.12,220.01,2.2727]
[1734428107134,2.24,220.13,220.02,4.8741545]
[1734428107437,2.2727,220.01,219.99,2.24]
[1734428107634,2.24,220.08,220.0,4.87433578]
[1734428107832,2.24,220.08,219.96,4.5132]
[1734428108133,2.24,220.09,219.97,12.67412354]
[1734428108336,2.24,220.08,219.98,4.8746629]
[1734428108631,2.2728,220.0,219.99,4.8746629]
[1734428108831,2.24,220.08,219.96,2.24]
[1734428109036,2.24,220.08,219.97,4.87569388]
[1734428109227,2.2729,219.99,219.95,1.4656]
[1734428109433,2.24,220.08,219.96,4.87615116]
[1734428109634,2.24,220.07,219.95,1.4656]
[1734428109833,2.24,220.07,219.96,4.87618979]
[1734428109834,2.2724,220.04,219.96,4.87618979]
[1734428110136,2.24,220.07,219.97,7.11618979]
[1734428110333,2.24,220.07,219.98,4.87618979]
[1734428110533,2.24,220.07,219.99,4.87477715]
[1734428110735,2.24,220.09,219.97,2.24]
[1734428110941,2.24,220.09,219.98,12.67083625]
[1734428110942,2.2723,220.05,219.98,12.67083625]
[1734428111235,2.2723,220.05,219.97,2.24]
[1734428111236,2.24,220.09,220.0,2.2728]
[1734428111434,2.24,220.09,220.01,4.87355476]
[1734428111638,2.24,220.09,220.0,2.2728]
[1734428111934,2.24,220.09,220.01,4.85595247]
[1734428112134,2.24,220.09,219.95,1.4656]
[1734428112336,2.24,220.09,219.96,12.63346238]
[1734428112531,2.24,220.09,219.97,4.85902399]
[1734428112728,2.24,220.09,219.98,4.85902399]
[1734428112934,2.24,220.09,219.95,3.7056]
[1734428113238,2.2732,219.97,219.96,4.86282475]
[1734428113532,2.24,220.09,219.96,4.86282475]
[1734428113739,2.2722,220.06,220.0,2.2728]
[1734428113937,7.70059751,220.1,220.0,2.2728]
[1734428114132,7.70059751,220.1,219.99,2.24]